fUSD/lending_fUSD_20240626
["ID","MTS","AMOUNT","RATE_DAILY","PERIOD"]
[330459780,1719433853441,-151.0,0.00020233,2]
[330459781,1719433853451,-151.0,0.00020233,2]
[330459782,1719433853462,-151.0,0.00020233,2]
[330459783,1719433853473,-151.0,0.00020233,2]
[330459784,1719433853482,-151.0,0.00020233,2]
[330459785,1719433853491,-151.0,0.00020233,2]
[330459786,1719433853501,-451.337661,0.00020233,2]
[330459787,1719433853510,-451.337661,0.00020233,2]
[330459788,1719433853519,-151.0,0.00020233,2]
[330459789,1719433853528,-150.0,0.00020254,2]
[330459790,1719433853538,-150.0,0.00020296,2]
[330459791,1719433853547,-150.0,0.00020312,2]
[330459792,1719433853556,-150.0,0.00020325,4]
[330459793,1719433853565,-150.0,0.00020325,2]
[330459794,1719433853575,-150.0,0.00020338,2]
[330459795,1719433853585,-954.92199898,0.00020355,2]
[330459796,1719433853594,-150.0,0.00020356,2]
[330459797,1719433853603,-150.0,0.00020356,2]
[330459798,1719433853613,-150.0,0.00020376,2]
[330459799,1719433853624,-163.85134777,0.000204,2]
[330459800,1719433853634,-150.0,0.00020423,2]
[330459801,1719433853643,-150.0,0.00020426,2]
[330459802,1719433853653,-150.0,0.00020436,2]
[330459803,1719433853663,-150.0,0.00020508,4]
[330459804,1719433853673,-13232.67795138,0.00020522,2]
[330459805,1719433853682,-1148.422475,0.0002053,2]
[330459806,1719433853692,-367.602335,0.0002053,2]
[330459807,1719433853701,-180.590526,0.0002053,2]
[330459808,1719433853711,-152.728454,0.0002053,2]
[330459809,1719433853720,-150.0,0.00020539,2]
[330459810,1719433853730,-288.618591,0.00020548,2]
[330459811,1719433853739,-150.0,0.00020554,2]
[330459812,1719433853749,-150.0,0.00020554,2]
[330459813,1719433853758,-151.15,0.00020565,2]
[330459814,1719433853767,-150.0,0.00020588,2]
[330459815,1719433853777,-150.0,0.00020609,2]
[330459816,1719433853786,-335.26586384,0.00020614,2]
[330459817,1719433853796,-954.92199898,0.00020645,2]
[330459818,1719433853805,-150.0,0.00020691,4]
[330459819,1719433853815,-150.0,0.00020724,2]
[330459820,1719433853825,-151.0,0.00020787,2]
[330459821,1719433853834,-151.0,0.00020787,2]
[330459822,1719433853844,-151.0,0.00020787,2]
[330459823,1719433853853,-151.0,0.00020787,2]
[330459824,1719433853863,-151.0,0.00020787,2]
[330459825,1719433853872,-770.296472,0.00020787,2]
[330459826,1719433853882,-151.0,0.00020787,2]
[330459827,1719433853892,-151.0,0.00020787,2]
[330459828,1719433853902,-770.296472,0.00020787,2]
[330459829,1719433853911,-1148.422475,0.00020787,2]
[330459830,1719433853920,-367.602335,0.00020787,2]
[330459831,1719433853938,-174.325375,0.00020791,2]
[330459832,1719433853952,-156.200211,0.00020791,2]
[330459833,1719433853961,-162.034297,0.00020791,2]
[330459834,1719433853971,-150.0,0.00020794,2]
[330459835,1719433853982,-1233.0020101,0.00020836,2]
[330459836,1719433853993,-150.0,0.00020843,2]
[330459837,1719433854003,-150.0,0.00020864,2]
[330459838,1719433854012,-13232.67795138,0.00020867,2]
[330459839,1719433854021,-150.0,0.00020874,4]
[330459840,1719433854030,-317.70355495,0.0002089,2]
[330459841,1719433854039,-73169.85928831,0.00020895,2]
[330459842,1719433854049,-151.0,0.00020895,2]
[330459843,1719433854058,-197.473045,0.00020895,2]
[330459844,1719433854067,-151.0,0.00020895,2]
[330459845,1719433854077,-151.0,0.00020895,2]
[330459846,1719433854086,-151.0,0.00020895,2]
[330459847,1719433854103,-289.725,0.00020895,2]
[330459848,1719433854113,-151.0,0.00020895,2]
[330459849,1719433854123,-151.0,0.00020895,2]
[330459850,1719433854133,-151.0,0.00020895,2]
[330459851,1719433854142,-151.0,0.00020895,2]
[330459852,1719433854152,-151.0,0.00020895,2]
[330459853,1719433854161,-277.880378,0.00020895,2]
[330459854,1719433854171,-277.880378,0.00020895,2]
[330459855,1719433854180,-384.447026,0.00020895,2]
[330459856,1719433854189,-151.0,0.00020895,2]
[330459857,1719433854199,-151.0,0.00020895,2]
[330459858,1719433854208,-384.447026,0.00020895,2]
[330459859,1719433854218,-206.874608,0.00020895,2]
[330459860,1719433854227,-151.0,0.00020895,2]
[330459861,1719433854236,-151.0,0.00020895,2]
[330459862,1719433854245,-206.874608,0.00020895,2]
[330459863,1719433854255,-151.0,0.00020895,2]
[330459864,1719433854264,-151.0,0.00020895,2]
[330459865,1719433854274,-151.0,0.00020895,2]
[330459866,1719433854283,-160.46,0.00020895,2]
[330459867,1719433854292,-151.0,0.00020895,2]
[330459868,1719433854302,-359.567352,0.00020895,2]
[330459869,1719433854311,-151.0,0.00020895,2]
[330459870,1719433854320,-155.486972,0.00020895,2]
[330459871,1719433854330,-359.567352,0.00020895,2]
[330459872,1719433854339,-155.486972,0.00020895,2]
[330459873,1719433854348,-151.0,0.00020895,2]
[330459874,1719433854357,-165.737821,0.00020895,2]
[330459875,1719433854367,-165.737821,0.00020895,2]
[330459876,1719433854376,-324.540981,0.00020895,2]
[330459877,1719433854385,-324.540981,0.00020895,2]
[330459878,1719433854394,-225.857259,0.00020895,2]
[330459879,1719433854404,-151.0,0.00020895,2]
[330459880,1719433854414,-225.857259,0.00020895,2]
[330459881,1719433854423,-151.0,0.00020895,2]
[330459882,1719433854433,-151.0,0.00020895,2]
[330459883,1719433854442,-151.0,0.00020895,2]
[330459884,1719433854452,-151.0,0.00020895,2]
[330459885,1719433854461,-151.0,0.00020895,2]
[330459886,1719433854472,-151.0,0.00020895,2]
[330459887,1719433854482,-151.0,0.00020895,2]
[330459888,1719433854492,-151.0,0.00020895,2]
[330459889,1719433854502,-151.0,0.00020895,2]
[330459890,1719433854520,-151.0,0.00020895,2]
[330459891,1719433854532,-151.0,0.00020895,2]
[330459892,1719433854541,-151.0,0.00020895,2]
[330459893,1719433854551,-296.0,0.00020895,2]
[330459894,1719433854560,-451.337661,0.00020895,2]
[330459895,1719433854570,-451.337661,0.00020895,2]
[330459896,1719433854579,-151.0,0.00020895,2]
[330459897,1719433854589,-1878.549815,0.00020895,2]
[330459898,1719433854598,-1878.549815,0.00020895,2]
[330459899,1719433854608,-258.999764,0.00020895,2]
[330459900,1719433854618,-258.999764,0.00020895,2]
[330459901,1719433854627,-151.0,0.00020895,2]
[330459902,1719433854637,-1173.34246,0.00020895,2]
[330459903,1719433854647,-401.949054,0.00020895,2]
[330459904,1719433854658,-401.949054,0.00020895,2]
[330459905,1719433854667,-1173.34246,0.00020895,2]
[330459906,1719433854676,-151.0,0.00020895,2]
[330459907,1719433854686,-151.0,0.00020895,2]
[330459908,1719433854696,-151.0,0.00020895,2]
[330459909,1719433854705,-151.0,0.00020895,2]
[330459910,1719433854715,-151.0,0.00020895,2]
[330459911,1719433854724,-151.0,0.00020895,2]
[330459912,1719433854734,-533.795358,0.00020895,2]
[330459913,1719433854744,-151.0,0.00020895,2]
[330459914,1719433854754,-533.795358,0.00020895,2]
[330459915,1719433854764,-151.0,0.00020895,2]
[330459916,1719433854774,-151.0,0.00020895,2]
[330459917,1719433854783,-151.0,0.00020895,2]
[330459918,1719433854793,-150.0,0.00020898,2]
[330459919,1719433854803,-151.0,0.000209,2]
[330459920,1719433854813,-151.0,0.000209,2]
[330459921,1719433854822,-152.129061,0.000209,2]
[330459922,1719433854832,-151.0,0.000209,2]
[330459923,1719433854841,-770.296472,0.000209,2]
[330459924,1719433854851,-151.0,0.000209,2]
[330459925,1719433854860,-151.0,0.000209,2]
[330459926,1719433854870,-770.296472,0.000209,2]
[330459927,1719433854879,-150.0,0.00020914,2]
[330459928,1719433854889,-954.92199898,0.00020936,2]
[330459929,1719433854899,-150.0,0.00020986,2]
[330459930,1719433854908,-500.0,0.00021,2]
[330459931,1719433854917,-598.0,0.00021,2]
[330459932,1719433854928,-202.692374,0.00021,2]
[330459933,1719433854940,-1250.0,0.00021,2]
[330459934,1719433854950,-335.26586384,0.00021043,2]
[330459935,1719433854959,-1148.422475,0.00021044,2]
[330459936,1719433854970,-367.602335,0.00021044,2]
[330459937,1719433854981,-150.0,0.00021055,2]
[330459938,1719433854990,-150.0,0.00021057,4]
[330459939,1719433855000,-24232.42278766,0.0002107,2]
[330459940,1719433855012,-300.0,0.00021078,2]
[330459941,1719433855022,-150.0,0.00021086,2]
[330459942,1719433855032,-150.0,0.00021108,2]
[330459943,1719433855042,-150.0,0.0002111,2]
[330459944,1719433855052,-2500.0,0.00021112,2]
[330459945,1719433855062,-163.85134777,0.0002115,2]
[330459946,1719433855071,-150.0,0.00021153,2]
[330459947,1719433855081,-382.82,0.00021178,2]
[330459948,1719433855090,-304.62,0.00021178,2]
[330459949,1719433855100,-354.44,0.00021178,2]
[330459950,1719433855110,-354.44,0.00021178,2]
[330459951,1719433855120,-352.58,0.00021178,2]
[330459952,1719433855129,-13232.67795138,0.00021211,2]
[330459953,1719433855139,-954.92199898,0.00021227,2]
[330459954,1719433855149,-150.0,0.0002124,4]
[330459955,1719433855159,-150.0,0.00021252,2]
[330459956,1719433855168,-150.0,0.00021286,2]
[330459957,1719433855178,-1148.422475,0.000213,2]
[330459958,1719433855187,-367.602335,0.000213,2]
[330459959,1719433855197,-150.0,0.00021312,2]
[330459960,1719433855207,-150.0,0.00021318,2]
[330459961,1719433855218,-150.0,0.00021323,2]
[330459962,1719433855228,-150.0,0.00021363,2]
[330459963,1719433855238,-288.618591,0.0002137,2]
[330459964,1719433855247,-150.0,0.00021384,2]
[330459965,1719433855258,-2507.87273721,0.00021421,2]
[330459966,1719433855267,-150.0,0.00021423,4]
[330459967,1719433855278,-150.0,0.00021469,2]
[330459968,1719433855288,-150.0,0.00021499,2]
[330459969,1719433855298,-1500.0,0.00021518,2]
[330459970,1719433855308,-954.92199898,0.00021518,2]
[330459971,1719433855318,-13232.67795138,0.00021556,2]
[330459972,1719433855328,-1148.422475,0.00021557,2]
[330459973,1719433855338,-367.602335,0.00021557,2]
[330459974,1719433855347,-152.728454,0.00021557,2]
[330459975,1719433855358,-324.540981,0.00021557,2]
[330459976,1719433855368,-324.540981,0.00021557,2]
[330459977,1719433855378,-151.0,0.00021557,2]
[330459978,1719433855388,-151.0,0.00021557,2]
[330459979,1719433855398,-151.0,0.00021557,2]
[330459980,1719433855408,-1878.549815,0.00021557,2]
[330459981,1719433855418,-1878.549815,0.00021557,2]
[330459982,1719433855428,-258.999764,0.00021557,2]
[330459983,1719433855438,-258.999764,0.00021557,2]
[330459984,1719433855448,-151.0,0.00021557,2]
[330459985,1719433855458,-401.949054,0.00021557,2]
[330459986,1719433855468,-1173.34246,0.00021557,2]
[330459987,1719433855479,-401.949054,0.00021557,2]
[330459988,1719433855489,-1173.34246,0.00021557,2]
[330459989,1719433855499,-151.0,0.00021557,2]
[330459990,1719433855741,-151.0,0.00021557,2]
[330459991,1719433855757,-151.0,0.00021557,2]
[330459992,1719433855767,-151.0,0.00021557,2]
[330459993,1719433855776,-151.0,0.00021557,2]
[330459994,1719433855786,-151.0,0.00021557,2]
[330459995,1719433855795,-533.795358,0.00021557,2]
[330459996,1719433855805,-151.0,0.00021557,2]
[330459997,1719433855814,-533.795358,0.00021557,2]
[330459998,1719433855824,-151.0,0.00021557,2]
[330459999,1719433855834,-151.0,0.00021567,2]
[330460000,1719433855843,-151.0,0.00021567,2]
[330460001,1719433855852,-283.883233,0.00021567,2]
[330460002,1719433855862,-359.567352,0.00021567,2]
[330460003,1719433855871,-155.486972,0.00021567,2]
[330460004,1719433855881,-359.567352,0.00021567,2]
[330460005,1719433855890,-155.486972,0.00021567,2]
[330460006,1719433855900,-151.0,0.00021567,2]
[330460007,1719433855909,-165.737821,0.00021567,2]
[330460008,1719433855919,-165.737821,0.00021567,2]
[330460009,1719433855929,-225.857259,0.00021567,2]
[330460010,1719433855942,-225.857259,0.00021567,2]
[330460011,1719433855951,-150.0,0.00021606,4]
[330460012,1719433855961,-300.0,0.00021617,2]
[330460013,1719433855971,-164.15,0.00021644,2]
[330460014,1719433855982,-164.15,0.00021644,2]
[330460015,1719433855992,-153.78,0.00021644,2]
[330460016,1719433856001,-419.14,0.00021644,2]
[330460017,1719433856012,-150.0,0.00021644,2]
[330460018,1719433856022,-330.89945343,0.0002166,7]
[330460019,1719433856032,-151.0,0.00021666,2]
[330460020,1719433856041,-277.880378,0.00021666,2]
[330460021,1719433856050,-277.880378,0.00021666,2]
[330460022,1719433856059,-384.447026,0.00021666,2]
[330460023,1719433856069,-151.0,0.00021666,2]
[330460024,1719433856079,-151.0,0.00021666,2]
[330460025,1719433856088,-384.447026,0.00021666,2]
[330460026,1719433856097,-206.874608,0.00021666,2]
[330460027,1719433856106,-151.0,0.00021666,2]
[330460028,1719433856116,-151.0,0.00021666,2]
[330460029,1719433856127,-206.874608,0.00021666,2]
[330460030,1719433856136,-151.0,0.00021666,2]
[330460031,1719433856146,-10000.0,0.00021666,2]
[330460032,1719433856156,-150.0,0.00021722,2]
[330460033,1719433856167,-150.0,0.00021723,2]
[330460034,1719433856177,-150.0,0.00021724,2]
[330460035,1719433856188,-150.0,0.00021733,2]
[330460036,1719433856198,-151.0,0.0002175,2]
[330460037,1719433856208,-151.0,0.0002175,2]
[330460038,1719433856218,-151.0,0.0002175,2]
[330460039,1719433856228,-150.0,0.00021759,2]
[330460040,1719433856237,-151.0,0.0002176,2]
[330460041,1719433856247,-151.0,0.0002176,2]
[330460042,1719433856256,-151.0,0.0002176,2]
[330460043,1719433856267,-151.0,0.0002176,2]
[330460044,1719433856276,-150.0,0.00021764,2]
[330460045,1719433856286,-150.0,0.00021768,2]
[330460046,1719433856297,-213.95831759,0.0002178,2]
[330460047,1719433856308,-2248.29486901,0.0002178,2]
[330460048,1719433856318,-155.80803063,0.0002178,2]
[330460049,1719433856328,-150.0,0.00021781,2]
[330460050,1719433856339,-150.0,0.00021785,2]
[330460051,1719433856350,-150.0,0.00021787,2]
[330460052,1719433856359,-150.0,0.00021789,4]
[330460053,1719433856368,-150.0,0.00021801,2]
[330460054,1719433856379,-150.0,0.00021802,2]
[330460055,1719433856388,-954.92199898,0.00021809,2]
[330460056,1719433856399,-150.0,0.0002183,2]
[330460057,1719433856409,-174.325375,0.00021831,2]
[330460058,1719433856418,-500.0,0.00021838,2]
[330460059,1719433856427,-2248.29486899,0.0002184,2]
[330460060,1719433856437,-155.80803061,0.0002184,2]
[330460061,1719433856447,-500.0,0.00021847,2]
[330460062,1719433856457,-150.0,0.0002185,2]
[330460063,1719433856466,-150.0,0.00021853,2]
[330460064,1719433856477,-500.0,0.00021856,2]
[330460065,1719433856487,-150.0,0.00021858,2]
[330460066,1719433856496,-151.0,0.00021863,2]
[330460067,1719433856505,-500.0,0.00021865,2]
[330460068,1719433856515,-150.0,0.00021869,2]
[330460069,1719433856524,-500.0,0.00021874,2]
[330460070,1719433856533,-310927.43240263,0.0002188,2]
[330460074,1719434295847,-442.71754,0.00013701,2]
[330460075,1719434295875,-5892.21138441,0.0001387,2]
[330460076,1719434295901,-165.60822621,0.000139,2]
[330460077,1719434295928,-300.0,0.00013998,2]
[330460078,1719434295955,-150.0,0.00013999,2]
[330460079,1719434295983,-18049.46284938,0.00013999,2]
[330460095,1719435031629,-25256.11808844,0.00013447,2]
[330460096,1719435031639,-3023.0,0.00013448,2]
[330460097,1719435031649,-2367.61774116,0.00013483,2]
[330460098,1719435031660,-981.0,0.00013583,2]
[330460099,1719435031670,-5379.96919912,0.00013936,2]
[330460100,1719435031679,-1444.46814265,0.00013937,2]
[330460101,1719435031688,-484.9,0.00013978,2]
[330460102,1719435031698,-150.0,0.00013988,2]
[330460103,1719435031708,-332.5139031,0.0001399,2]
[330460104,1719435031717,-155.11901884,0.00013999,2]
[330460105,1719435031726,-2740.59105329,0.00013999,2]
[330460106,1719435031735,-203480.71595244,0.00014,2]
[330460107,1719435031747,-17200.0,0.00014,2]
[330460108,1719435031769,-5132.47009967,0.00014,2]
[330460109,1719435031784,-845.39999995,0.00014,2]
[330460110,1719435031797,-726.25927746,0.00014,2]
[330460111,1719435031808,-11664.63941192,0.00014,2]
[330460119,1719435037594,-2934.63600369,0.00014,2]
[330460120,1719435037606,-459.46925013,0.00014,2]
[330460121,1719435037668,-467.54161742,0.00014,2]
[330460158,1719435040297,-1114.04420081,0.00014,2]
[330460159,1719435040309,-736.10038563,0.00014,2]
[330460160,1719435040438,-344645.02190277,0.00014,2]
[330460161,1719435040449,-490.3621,0.00014,2]
[330460162,1719435040546,-3018.77743687,0.00014,2]
[330460163,1719435040557,-2831.64,0.00014,2]
[330460164,1719435040578,-999.32303624,0.00014,2]
[330460165,1719435040589,-1880.85,0.00014,2]
[330460166,1719435040600,-325.93999993,0.00014,2]
[330460167,1719435040611,-24415.85499929,0.00014,2]
[330460168,1719435040634,-6041.58227353,0.00014,2]
[330460169,1719435040650,-708.14330386,0.00014,2]
[330460170,1719435040661,-11338.36342012,0.00014,2]
[330460171,1719435040673,-657.80939958,0.00014,2]
[330460172,1719435040684,-1139.11643078,0.00014,2]
[330460173,1719435040695,-2253.62392482,0.00014,2]
[330460174,1719435040735,-1144.22100412,0.00014,2]
[330460175,1719435040747,-17129.51154448,0.00014,2]
[330460176,1719435040758,-825.15284921,0.00014,2]
[330460177,1719435040770,-1595.00618646,0.00014,2]
[330460178,1719435040781,-202414.04946367,0.00014,2]
[330460179,1719435040792,-1047.95466654,0.00014,2]
[330460180,1719435040803,-1661.8907034,0.00014,2]
[330460186,1719435042789,-357.69482547,0.00014,2]
[330460187,1719435042855,-6126.08894093,0.00014,2]
[330460188,1719435042866,-6069.28380622,0.00014,2]
[330460215,1719435047303,-429.34971866,0.00014,2]
[330460216,1719435047319,-255.41169921,0.00014,2]
[330460217,1719435047338,-2223.96986429,0.00014,2]
[330460218,1719435047375,-756.71535306,0.00014,2]
[330460219,1719435047390,-362.68407531,0.00014,2]
[330460220,1719435047437,-543.624636,0.00014,2]
[330460221,1719435047454,-487.94323696,0.00014,2]
[330460222,1719435047503,-568.68341458,0.00014,2]
[330460223,1719435047518,-1188.35,0.00014,2]
[330460224,1719435047534,-425.10370671,0.00014,2]
[330460225,1719435047550,-1286.27,0.00014,2]
[330460226,1719435047566,-3214.27958353,0.00014,2]
[330460227,1719435047580,-789.29203113,0.00014,2]
[330460228,1719435047608,-798.24889699,0.00014,2]
[330460229,1719435047638,-4953.65644741,0.00014,2]
[330460230,1719435047653,-1673.90953421,0.00014,2]
[330460231,1719435047669,-712.46780598,0.00014,2]
[330460240,1719435723352,1286.08864935,0.00011198,2]
[330460241,1719435822000,3242.0,0.00011198,2]
[330460242,1719435843784,158.31418936,0.00011198,2]
[330460243,1719435992304,3391.35870222,0.00011198,2]
[330460244,1719436057689,1284.96038628,0.00011198,2]
[330460245,1719436168999,6455.98558768,0.00011198,2]
[330460257,1719436231881,-396.24892489,0.0001299,2]
[330460258,1719436231893,-657.95981262,0.0001299,2]
[330460259,1719436231903,-230.26092555,0.00013243,2]
[330460260,1719436231913,-1825.67026183,0.00013243,2]
[330460261,1719436231969,-1565.68844039,0.00013243,2]
[330460262,1719436231979,-383.43234045,0.00013244,2]
[330460263,1719436231988,-887.22900173,0.00013345,2]
[330460264,1719436231998,-12476.80180326,0.00013345,2]
[330460265,1719436232010,-7131.71201876,0.00013345,2]
[330460266,1719436232019,-3073.30227131,0.00013364,2]
[330460267,1719436232030,-22182.81581713,0.00013364,2]
[330460268,1719436232040,-1251.4146222,0.00013365,2]
[330460269,1719436232050,-460.65,0.00013366,2]
[330460270,1719436232059,-450.15761108,0.00013568,2]
[330460271,1719436232069,-339.508947,0.00013568,2]
[330460272,1719436232078,-150.0,0.00013569,2]
[330460273,1719436232088,-462.51,0.00013572,2]
[330460274,1719436232097,-536.12810749,0.00013573,2]
[330460275,1719436232109,-829.37822565,0.00013573,2]
[330460276,1719436232119,-238.05871063,0.00013573,2]
[330460277,1719436232129,-208.77,0.00013699,2]
[330460278,1719436232138,-6166.48,0.00013834,2]
[330460279,1719436232148,-414.50144157,0.00013851,2]
[330460280,1719436232158,-202.87113682,0.00013859,2]
[330460281,1719436232168,-430.54118397,0.00013859,2]
[330460282,1719436232176,-155.0,0.00013859,2]
[330460283,1719436232185,-1352.44633,0.0001386,2]
[330460284,1719436232194,-2417.7639,0.000139,2]
[330460285,1719436232203,-499.99,0.000139,2]
[330460286,1719436232213,-4390.0915,0.000139,2]
[330460287,1719436232222,-443.8513,0.000139,2]
[330460288,1719436232232,-647.07170086,0.00013914,2]
[330460289,1719436232241,-384.43665161,0.00013915,2]
[330460290,1719436232250,-251649.03019429,0.00014,2]
[330460291,1719436232259,-250.0,0.00014221,2]
[330460292,1719436232268,-1315.48962762,0.00014524,2]
[330460293,1719436232278,-258.6924005,0.00014623,2]
[330460295,1719436232287,-1000.0,0.00014624,2]
[330460297,1719436232296,-210.0,0.00014926,2]
[330460298,1719436232306,-226.97511983,0.00015343,2]
[330460299,1719436232316,-1315.48962761,0.00015344,2]
[330460300,1719436232328,-1709.0,0.000155,5]
[330460301,1719436232338,-155.0,0.00015599,2]
[330460302,1719436232349,-460.65,0.0001563,2]
[330460303,1719436232359,-6220.54215746,0.0001616,2]
[330460304,1719436232370,-5592.90095688,0.00016161,2]
[330460305,1719436232380,-1745.34205599,0.00016162,2]
[330460306,1719436232391,-1315.48962761,0.00016163,2]
[330460307,1719436232401,-1352.44633,0.0001636,2]
[330460308,1719436232411,-293.0,0.00016419,2]
[330460309,1719436232421,-155.0,0.0001645,2]
[330460310,1719436232431,-1000.0,0.00016451,2]
[330460311,1719436232442,-228.05965401,0.00016467,2]
[330460312,1719436232453,-161.5661252,0.00016503,2]
[330460313,1719436232463,-368.59840723,0.00016504,2]
[330460314,1719436232473,-175.50755339,0.00016504,2]
[330460315,1719436232483,-1204.0,0.000168,2]
[330460316,1719436232492,-518.04242089,0.00016878,2]
[330460317,1719436232503,-944.25093946,0.00016879,2]
[330460318,1719436232513,-2828.06320888,0.00016882,2]
[330460319,1719436232523,-478.0,0.000169,2]
[330460320,1719436232534,-300.21600683,0.00016969,2]
[330460321,1719436232544,-1315.48962761,0.00016983,2]
[330460322,1719436232553,-188.48,0.00017457,2]
[330460323,1719436232563,-525.88970109,0.00017708,2]
[330460324,1719436232572,-1315.48962761,0.00017802,2]
[330460325,1719436232582,-228.05965401,0.00017825,2]
[330460326,1719436232591,-460.65,0.00017894,2]
[330460327,1719436232601,-370.20131552,0.00018,2]
[330460328,1719436232611,-403.13534439,0.00018,2]
[330460329,1719436232621,-403.13534439,0.00018,2]
[330460330,1719436232631,-403.13534439,0.00018,2]
[330460331,1719436232643,-403.13534439,0.00018,2]
[330460332,1719436232652,-403.13534439,0.00018,2]
[330460333,1719436232663,-403.13534439,0.00018,2]
[330460334,1719436232674,-403.13534439,0.00018,2]
[330460335,1719436232683,-403.13534439,0.00018,2]
[330460336,1719436232692,-403.13534439,0.00018,2]
[330460337,1719436232703,-403.13534439,0.00018,2]
[330460338,1719436232713,-403.13534439,0.00018,2]
[330460339,1719436232723,-403.13534439,0.00018,2]
[330460340,1719436232736,-403.13534439,0.00018,2]
[330460341,1719436232747,-403.13534439,0.00018,2]
[330460342,1719436232757,-403.13534439,0.00018,2]
[330460343,1719436232767,-403.13534439,0.00018,2]
[330460344,1719436232779,-403.13534439,0.00018,2]
[330460345,1719436232788,-403.13534439,0.00018,2]
[330460346,1719436232798,-403.13534439,0.00018,2]
[330460347,1719436232810,-403.13534439,0.00018,2]
[330460348,1719436232819,-403.13534439,0.00018,2]
[330460349,1719436232831,-403.13534439,0.00018,2]
[330460350,1719436232842,-403.13534439,0.00018,2]
[330460351,1719436232852,-403.13534439,0.00018,2]
[330460352,1719436232861,-403.13534439,0.00018,2]
[330460353,1719436232871,-403.13534439,0.00018,2]
[330460354,1719436232880,-403.13534439,0.00018,2]
[330460355,1719436232891,-403.13534439,0.00018,2]
[330460356,1719436232900,-403.13534439,0.00018,2]
[330460357,1719436232910,-403.13534439,0.00018,2]
[330460358,1719436232920,-403.13534439,0.00018,2]
[330460359,1719436232930,-403.13534439,0.00018,2]
[330460360,1719436232939,-403.13534439,0.00018,2]
[330460361,1719436232948,-403.13534439,0.00018,2]
[330460362,1719436232958,-403.13534439,0.00018,2]
[330460363,1719436232968,-403.13534439,0.00018,2]
[330460364,1719436232978,-403.13534439,0.00018,2]
[330460365,1719436232987,-403.13534439,0.00018,2]
[330460366,1719436232997,-403.13534439,0.00018,2]
[330460367,1719436233006,-178.0,0.0001806,2]
[330460368,1719436233017,-1000.0,0.00018279,2]
[330460369,1719436233028,-1315.48962761,0.00018622,2]
[330460370,1719436233038,-1352.44633,0.0001886,2]
[330460371,1719436233048,-290.0,0.00018897,2]
[330460372,1719436233057,-5161.0,0.00018897,2]
[330460373,1719436233067,-5796.0,0.00018897,2]
[330460374,1719436233077,-1660.0,0.00018897,2]
[330460375,1719436233086,-300.0,0.00019,2]
[330460376,1719436233095,-7500.0,0.00019133,2]
[330460377,1719436233105,-319.44397734,0.00019178,2]
[330460378,1719436233115,-250.0,0.00019178,2]
[330460379,1719436233125,-228.05965401,0.00019183,2]
[330460380,1719436233136,-448.0,0.00019278,2]
[330460381,1719436233146,-263.565,0.00019278,2]
[330460382,1719436233156,-1983.0,0.00019278,2]
[330460383,1719436233166,-3199.0,0.00019278,2]
[330460384,1719436233175,-1315.48962761,0.00019441,2]
[330460385,1719436233186,-1000.0,0.000195,2]
[330460386,1719436233195,-1133.92751376,0.00019613,2]
[330460387,1719436233205,-150.0,0.00019775,2]
[330460388,1719436233214,-365.2873899,0.0002,2]
[330460389,1719436233224,-1274.00198507,0.0002,2]
[330460390,1719436233234,-272.57904381,0.0002,2]
[330460391,1719436233243,-5000.0,0.0002,2]
[330460392,1719436233253,-326.91214886,0.0002,2]